[Event "Rapid Tournament (RAP)"]
[Site "Biel, Switzerland"]
[Date "2026.07.12"]
[Round "3.45"]
[White "Boner, Timm"]
[Black "Kwiatkowski, Maciej"]
[Result "0-1"]
[TimeControl "15 + 5"]
[WhiteTitle "-"]
[BlackTitle "-"]
[WhiteFideId "1330039"]
[BlackFideId "1360175"]
[WhiteElo "1720"]
[BlackElo "1902"]

1. e4 {[%clk 00:15:05]} {[%emt 00:00:02]} c5 {[%clk 00:15:04]} {[%emt
00:00:06]} 2. Nf3 {[%clk 00:15:09]} {[%emt 00:00:02]} e6 {[%clk 00:14:53]}
{[%emt 00:00:17]} 3. Bc4 {[%clk 00:15:11]} {[%emt 00:00:02]} Nc6 {[%clk
00:14:34]} {[%emt 00:00:24]} 4. O-O {[%clk 00:15:13]} {[%emt 00:00:03]} a6
{[%clk 00:14:36]} {[%emt 00:00:04]} 5. Re1 {[%clk 00:15:12]} {[%emt 00:00:05]}
d6 {[%clk 00:13:59]} {[%emt 00:00:43]} 6. d4 {[%clk 00:15:15]} {[%emt
00:00:02]} cxd4 {[%clk 00:13:59]} {[%emt 00:00:04]} 7. Nxd4 {[%clk 00:15:17]}
{[%emt 00:00:03]} Be7 {[%clk 00:13:42]} {[%emt 00:00:22]} 8. Nxc6 {[%clk
00:15:18]} {[%emt 00:00:04]} bxc6 {[%clk 00:13:45]} {[%emt 00:00:02]} 9. Nc3
{[%clk 00:15:18]} {[%emt 00:00:05]} d5 {[%clk 00:13:43]} {[%emt 00:00:08]} 10.
exd5 {[%clk 00:15:19]} {[%emt 00:00:04]} cxd5 {[%clk 00:13:46]} {[%emt
00:00:01]} 11. Bb3 {[%clk 00:15:19]} {[%emt 00:00:05]} Nf6 {[%clk 00:13:43]}
{[%emt 00:00:08]} 12. Ba4+ {[%clk 00:15:10]} {[%emt 00:00:14]} Bd7 {[%clk
00:13:44]} {[%emt 00:00:04]} 13. Bb3 {[%clk 00:15:05]} {[%emt 00:00:10]} O-O
{[%clk 00:13:45]} {[%emt 00:00:04]} 14. Bg5 {[%clk 00:15:04]} {[%emt 00:00:06]}
a5 {[%clk 00:13:44]} {[%emt 00:00:07]} 15. a4 {[%clk 00:14:58]} {[%emt
00:00:10]} Bc6 {[%clk 00:11:58]} {[%emt 00:01:50]} 16. Qd4 {[%clk 00:14:46]}
{[%emt 00:00:18]} Rb8 {[%clk 00:11:49]} {[%emt 00:00:14]} 17. h3 {[%clk
00:14:06]} {[%emt 00:00:45]} h6 {[%clk 00:11:22]} {[%emt 00:00:32]} 18. Be3
{[%clk 00:13:52]} {[%emt 00:00:19]} Rb4 {[%clk 00:11:23]} {[%emt 00:00:04]} 19.
Qa7 {[%clk 00:13:52]} {[%emt 00:00:04]} d4 {[%clk 00:10:58]} {[%emt 00:00:31]}
20. Bf4 {[%clk 00:12:49]} {[%emt 00:01:08]} dxc3 {[%clk 00:10:54]} {[%emt
00:00:09]} 21. Bc7 {[%clk 00:12:51]} {[%emt 00:00:03]} Qa8 {[%clk 00:10:48]}
{[%emt 00:00:11]} 22. Qxa5 {[%clk 00:12:10]} {[%emt 00:00:45]} cxb2 {[%clk
00:10:39]} {[%emt 00:00:14]} 23. Qxa8 {[%clk 00:11:29]} {[%emt 00:00:47]} Rxa8
{[%clk 00:10:29]} {[%emt 00:00:15]} 24. Ra2 {[%clk 00:11:23]} {[%emt 00:00:10]}
Nd5 {[%clk 00:10:19]} {[%emt 00:00:15]} 25. Rxb2 {[%clk 00:11:15]} {[%emt
00:00:14]} Nxc7 {[%emt 00:00:03]} 0-1

[Event "Rapid Tournament (RAP)"]
[Site "Biel, Switzerland"]
[Date "2026.07.12"]
[Round "3.46"]
[White "Lang, Fabian"]
[Black "Chu, Wa Ching David"]
[Result "1/2-1/2"]
[TimeControl "15 + 5"]
[WhiteTitle "-"]
[BlackTitle "-"]
[WhiteFideId "1310160"]
[BlackFideId "6013180"]
[WhiteElo "1900"]
[BlackElo "1723"]

1. d4 {[%clk 00:15:07]} {[%emt 00:00:02]} d5 {[%clk 00:14:39]} {[%emt
00:00:32]} 2. Nf3 {[%clk 00:15:11]} {[%emt 00:00:01]} Nf6 {[%clk 00:14:42]}
{[%emt 00:00:02]} 3. g3 {[%clk 00:15:15]} e6 {[%clk 00:14:47]} {[%emt
00:00:02]} 4. Bg2 {[%clk 00:15:19]} {[%emt 00:00:01]} Be7 {[%clk 00:14:51]} 5.
O-O {[%clk 00:15:22]} {[%emt 00:00:02]} O-O {[%clk 00:14:55]} {[%emt 00:00:02]}
6. c4 {[%clk 00:15:25]} {[%emt 00:00:01]} dxc4 {[%clk 00:14:59]} {[%emt
00:00:01]} 7. Qc2 {[%emt 00:00:02]} c6 8. Qxc4 {[%clk 00:14:45]} {[%emt
00:00:48]} b5 {[%clk 00:15:05]} {[%emt 00:00:03]} 9. Qc2 {[%clk 00:14:47]}
{[%emt 00:00:02]} Bb7 {[%clk 00:15:09]} {[%emt 00:00:02]} 10. Nc3 {[%clk
00:14:31]} {[%emt 00:00:21]} Nbd7 {[%clk 00:15:08]} {[%emt 00:00:05]} 11. Bf4
{[%clk 00:13:58]} {[%emt 00:00:39]} Qb6 {[%clk 00:15:02]} {[%emt 00:00:11]} 12.
Rac1 {[%clk 00:13:01]} {[%emt 00:01:02]} Rac8 {[%clk 00:15:01]} {[%emt
00:00:05]} 13. Rfd1 {[%clk 00:11:07]} {[%emt 00:01:59]} Rfd8 {[%clk 00:14:34]}
{[%emt 00:00:32]} 14. a3 {[%clk 00:11:10]} {[%emt 00:00:03]} c5 {[%clk
00:14:05]} {[%emt 00:00:34]} 15. dxc5 {[%clk 00:10:12]} {[%emt 00:01:04]} Nxc5
{[%clk 00:13:45]} {[%emt 00:00:25]} 16. b4 {[%clk 00:09:03]} {[%emt 00:01:13]}
Nce4 {[%clk 00:12:41]} {[%emt 00:01:09]} 17. Rxd8+ {[%clk 00:08:32]} {[%emt
00:00:37]} Bxd8 {[%clk 00:11:49]} {[%emt 00:00:56]} 18. Be3 {[%clk 00:08:28]}
{[%emt 00:00:09]} Rxc3 {[%clk 00:09:25]} {[%emt 00:02:29]} 19. Qxc3 {[%clk
00:05:57]} {[%emt 00:02:36]} Nxc3 {[%clk 00:09:23]} {[%emt 00:00:07]} 20. Bxb6
{[%clk 00:05:50]} {[%emt 00:00:12]} Nxe2+ {[%clk 00:09:20]} {[%emt 00:00:08]}
21. Kf1 {[%clk 00:05:51]} {[%emt 00:00:04]} Nxc1 {[%clk 00:09:05]} {[%emt
00:00:20]} 22. Bxd8 {[%clk 00:05:52]} {[%emt 00:00:04]} Nd3 {[%clk 00:08:49]}
{[%emt 00:00:21]} 23. Bxf6 {[%clk 00:04:10]} {[%emt 00:01:47]} gxf6 {[%clk
00:08:50]} {[%emt 00:00:04]} 24. Nd4 {[%clk 00:04:04]} {[%emt 00:00:10]}
1/2-1/2

[Event "Rapid Tournament (RAP)"]
[Site "Biel, Switzerland"]
[Date "2026.07.12"]
[Round "3.47"]
[White "Berezovskii, Arina"]
[Black "Surdez, Patrick"]
[Result "1-0"]
[TimeControl "15 + 5"]
[WhiteTitle "-"]
[BlackTitle "-"]
[WhiteFideId "34449850"]
[BlackFideId "1380206"]
[WhiteElo "1895"]
[BlackElo "1695"]

1. e4 {[%clk 00:15:09]} c5 {[%clk 00:15:06]} {[%emt 00:00:05]} 2. Nf3 {[%clk
00:15:13]} d6 {[%clk 00:15:04]} {[%emt 00:00:07]} 3. c3 {[%clk 00:15:17]}
{[%emt 00:00:01]} Nc6 {[%clk 00:14:44]} {[%emt 00:00:25]} 4. d4 {[%clk
00:15:10]} {[%emt 00:00:11]} cxd4 {[%clk 00:14:41]} {[%emt 00:00:09]} 5. cxd4
{[%clk 00:15:13]} {[%emt 00:00:02]} Bg4 {[%clk 00:14:01]} {[%emt 00:00:44]} 6.
Be2 {[%clk 00:14:36]} {[%emt 00:00:42]} Bxf3 {[%clk 00:13:32]} {[%emt
00:00:35]} 7. Bxf3 {[%clk 00:14:35]} {[%emt 00:00:06]} Qb6 {[%clk 00:13:00]}
{[%emt 00:00:37]} 8. d5 {[%clk 00:14:12]} {[%emt 00:00:28]} Ne5 {[%clk
00:12:11]} {[%emt 00:00:54]} 9. Qa4+ {[%clk 00:13:31]} {[%emt 00:00:47]} Nd7
{[%clk 00:11:34]} {[%emt 00:00:41]} 10. O-O {[%clk 00:12:31]} {[%emt 00:01:04]}
a6 {[%clk 00:09:55]} {[%emt 00:01:44]} 11. Na3 {[%clk 00:09:20]} {[%emt
00:03:15]} Ngf6 {[%clk 00:07:30]} {[%emt 00:02:31]} 12. Be3 {[%clk 00:08:43]}
{[%emt 00:00:43]} Qd8 {[%clk 00:07:33]} 13. Rac1 {[%clk 00:07:43]} {[%emt
00:01:05]} g6 {[%clk 00:07:24]} {[%emt 00:00:15]} 14. Bd4 {[%clk 00:06:36]}
{[%emt 00:01:12]} Bg7 {[%clk 00:07:27]} {[%emt 00:00:01]} 15. Qb3 {[%clk
00:05:34]} {[%emt 00:01:07]} O-O {[%clk 00:07:03]} {[%emt 00:00:30]} 16. Qxb7
{[%clk 00:04:47]} {[%emt 00:00:52]} Rb8 {[%clk 00:06:39]} {[%emt 00:00:28]} 17.
Qxa6 {[%clk 00:04:06]} {[%emt 00:00:45]} Ra8 {[%clk 00:05:56]} {[%emt
00:00:50]} 18. Qe2 {[%clk 00:04:03]} {[%emt 00:00:08]} e5 {[%clk 00:05:30]}
{[%emt 00:00:31]} 19. dxe6 {[%clk 00:03:58]} {[%emt 00:00:10]} fxe6 {[%clk
00:05:32]} {[%emt 00:00:02]} 20. e5 {[%clk 00:03:28]} {[%emt 00:00:36]} Nd5
{[%clk 00:05:07]} {[%emt 00:00:30]} 21. Bxd5 {[%clk 00:03:02]} {[%emt
00:00:30]} exd5 {[%clk 00:04:53]} {[%emt 00:00:20]} 22. e6 {[%clk 00:02:28]}
{[%emt 00:00:39]} Bxd4 {[%clk 00:04:11]} {[%emt 00:00:46]} 23. e7 {[%clk
00:01:57]} {[%emt 00:00:37]} Qb6 {[%clk 00:03:50]} {[%emt 00:00:26]} 24.
exf8=Q+ {[%clk 00:01:50]} {[%emt 00:00:12]} Rxf8 {[%clk 00:03:53]} {[%emt
00:00:02]} 25. Qe6+ {[%clk 00:01:28]} {[%emt 00:00:26]} Rf7 {[%clk 00:03:57]}
{[%emt 00:00:01]} 26. Kh1 {[%clk 00:00:43]} {[%emt 00:00:50]} Kg7 {[%clk
00:03:01]} {[%emt 00:01:02]} 27. Nc2 {[%clk 00:00:36]} {[%emt 00:00:12]} Bxb2
{[%clk 00:01:44]} {[%emt 00:01:22]} 28. Rb1 {[%clk 00:00:30]} {[%emt 00:00:11]}
Ne5 {[%clk 00:01:47]} {[%emt 00:00:02]} 29. Ne3 {[%clk 00:00:21]} {[%emt
00:00:14]} Nd3 {[%clk 00:01:33]} {[%emt 00:00:19]} 30. Nd1 {[%clk 00:00:16]}
{[%emt 00:00:09]} Rxf2 {[%clk 00:01:09]} {[%emt 00:00:29]} 31. Nxf2 {[%clk
00:00:14]} {[%emt 00:00:08]} Nxf2+ {[%clk 00:01:10]} {[%emt 00:00:04]} 32. Rxf2
{[%clk 00:00:17]} {[%emt 00:00:02]} Qxf2 {[%clk 00:01:13]} {[%emt 00:00:02]} 33.
Qe7+ {[%clk 00:00:13]} {[%emt 00:00:08]} Kh6 {[%clk 00:01:14]} {[%emt
00:00:05]} 34. Qe1 {[%clk 00:00:10]} {[%emt 00:00:08]} Qxe1+ {[%clk 00:01:06]}
{[%emt 00:00:12]} 35. Rxe1 {[%clk 00:00:13]} {[%emt 00:00:02]} Be5 {[%clk
00:01:00]} {[%emt 00:00:11]} 36. a4 {[%clk 00:00:12]} {[%emt 00:00:07]} Kg5
{[%clk 00:00:56]} {[%emt 00:00:08]} 37. a5 {[%clk 00:00:13]} {[%emt 00:00:05]}
Bc3 {[%clk 00:01:00]} 38. Rd1 {[%clk 00:00:18]} d4 {[%clk 00:00:58]} {[%emt
00:00:07]} 39. a6 {[%clk 00:00:21]} {[%emt 00:00:02]} Ba5 {[%clk 00:00:55]}
{[%emt 00:00:09]} 40. a7 {[%clk 00:00:23]} {[%emt 00:00:03]} 1-0

[Event "Rapid Tournament (RAP)"]
[Site "Biel, Switzerland"]
[Date "2026.07.12"]
[Round "3.48"]
[White "Jaggy, Enzo"]
[Black "Ranieri, Pierpaolo"]
[Result "0-1"]
[TimeControl "15 + 5"]
[WhiteTitle "-"]
[BlackTitle "-"]
[WhiteFideId "1344919"]
[BlackFideId "893986"]
[WhiteElo "1682"]
[BlackElo "1891"]

1. c4 {[%clk 00:15:07]} {[%emt 00:00:01]} f5 {[%clk 00:15:08]} {[%emt
00:00:02]} 2. b3 {[%clk 00:15:04]} {[%emt 00:00:08]} Nf6 {[%clk 00:15:10]}
{[%emt 00:00:03]} 3. Bb2 {[%clk 00:15:08]} {[%emt 00:00:02]} d6 {[%clk
00:15:13]} {[%emt 00:00:01]} 4. e3 {[%clk 00:15:10]} {[%emt 00:00:02]} Nbd7
{[%clk 00:15:13]} {[%emt 00:00:07]} 5. Qc2 {[%clk 00:15:04]} {[%emt 00:00:11]}
g6 {[%clk 00:15:14]} {[%emt 00:00:04]} 6. Be2 {[%clk 00:14:47]} {[%emt
00:00:21]} Bg7 {[%clk 00:15:17]} {[%emt 00:00:02]} 7. h4 {[%clk 00:14:43]}
{[%emt 00:00:10]} e5 {[%clk 00:14:43]} {[%emt 00:00:38]} 8. Nc3 {[%clk
00:14:24]} {[%emt 00:00:24]} c6 {[%clk 00:14:28]} {[%emt 00:00:21]} 9. Nf3
{[%clk 00:13:52]} {[%emt 00:00:36]} Qe7 {[%clk 00:14:28]} {[%emt 00:00:06]} 10.
O-O-O {[%clk 00:13:21]} {[%emt 00:00:36]} Nc5 {[%clk 00:14:05]} {[%emt
00:00:27]} 11. Ng5 {[%clk 00:12:19]} {[%emt 00:01:07]} h6 {[%clk 00:13:14]}
{[%emt 00:00:56]} 12. b4 {[%clk 00:12:12]} {[%emt 00:00:12]} Na6 {[%clk
00:12:15]} {[%emt 00:01:04]} 13. b5 {[%clk 00:11:20]} {[%emt 00:00:57]} cxb5
{[%clk 00:10:56]} {[%emt 00:01:24]} 14. cxb5 {[%clk 00:11:22]} {[%emt
00:00:04]} Nc5 {[%clk 00:10:25]} {[%emt 00:00:35]} 15. d4 {[%clk 00:10:47]}
{[%emt 00:00:40]} exd4 {[%clk 00:09:52]} {[%emt 00:00:38]} 16. exd4 {[%clk
00:10:46]} {[%emt 00:00:06]} Nce4 {[%clk 00:09:41]} {[%emt 00:00:16]} 17. Ngxe4
{[%clk 00:10:46]} {[%emt 00:00:05]} Nxe4 {[%clk 00:09:43]} {[%emt 00:00:03]} 18.
Bf3 {[%clk 00:08:01]} {[%emt 00:02:50]} O-O {[%clk 00:05:25]} {[%emt 00:04:23]}
19. Nxe4 {[%clk 00:05:15]} {[%emt 00:02:51]} fxe4 {[%clk 00:05:03]} {[%emt
00:00:27]} 20. Qxe4 {[%clk 00:05:18]} Qxe4 {[%clk 00:03:57]} {[%emt 00:01:13]}
21. Bxe4 {[%clk 00:05:21]} {[%emt 00:00:02]} Rxf2 {[%clk 00:03:57]} {[%emt
00:00:05]} 22. Bxg6 {[%clk 00:03:32]} {[%emt 00:01:54]} Be6 {[%clk 00:03:02]}
{[%emt 00:01:00]} 23. Kb1 {[%clk 00:02:45]} {[%emt 00:00:51]} Rxg2 {[%clk
00:02:37]} {[%emt 00:00:31]} 24. Rhg1 {[%clk 00:02:39]} {[%emt 00:00:11]} Rxg6
{[%clk 00:02:37]} {[%emt 00:00:05]} 0-1

[Event "Rapid Tournament (RAP)"]
[Site "Biel, Switzerland"]
[Date "2026.07.12"]
[Round "3.49"]
[White "Zecirovic, Giacomo"]
[Black "Gast, Michael"]
[Result "1-0"]
[TimeControl "15 + 5"]
[WhiteTitle "-"]
[BlackTitle "-"]
[WhiteFideId "1339451"]
[BlackFideId "1373196"]
[WhiteElo "1886"]
[BlackElo "1682"]

1. e4 {[%clk 00:15:07]} {[%emt 00:00:02]} d6 {[%clk 00:15:08]} {[%emt
00:00:02]} 2. d4 {[%clk 00:15:10]} {[%emt 00:00:03]} Nf6 {[%clk 00:15:11]} 3.
Bd3 {[%clk 00:14:56]} {[%emt 00:00:18]} g6 {[%clk 00:15:09]} {[%emt 00:00:08]}
4. Nf3 {[%clk 00:14:34]} {[%emt 00:00:27]} Bg7 {[%clk 00:15:10]} {[%emt
00:00:04]} 5. O-O {[%clk 00:14:33]} {[%emt 00:00:06]} O-O {[%clk 00:15:08]}
{[%emt 00:00:07]} 6. Re1 {[%clk 00:14:04]} {[%emt 00:00:33]} c6 {[%clk
00:14:48]} {[%emt 00:00:26]} 7. c4 {[%clk 00:13:43]} {[%emt 00:00:25]} Na6
{[%clk 00:14:41]} {[%emt 00:00:13]} 8. Nc3 {[%clk 00:13:36]} {[%emt 00:00:13]}
Nb4 {[%clk 00:14:12]} {[%emt 00:00:34]} 9. Bb1 {[%clk 00:13:38]} {[%emt
00:00:02]} a5 {[%clk 00:14:15]} {[%emt 00:00:02]} 10. a3 {[%clk 00:13:37]}
{[%emt 00:00:06]} Na6 {[%clk 00:14:16]} {[%emt 00:00:05]} 11. h3 {[%clk
00:13:19]} {[%emt 00:00:21]} Nc7 {[%clk 00:13:11]} {[%emt 00:01:11]} 12. e5
{[%clk 00:09:32]} {[%emt 00:03:52]} dxe5 {[%clk 00:13:01]} {[%emt 00:00:14]} 13.
Nxe5 {[%clk 00:09:33]} {[%emt 00:00:04]} Nd7 {[%clk 00:12:45]} {[%emt
00:00:22]} 14. Nf3 {[%clk 00:09:25]} {[%emt 00:00:13]} b5 {[%clk 00:11:41]}
{[%emt 00:01:09]} 15. cxb5 {[%clk 00:08:20]} {[%emt 00:01:10]} Nxb5 {[%clk
00:11:21]} {[%emt 00:00:26]} 16. Nxb5 {[%clk 00:07:42]} {[%emt 00:00:42]} cxb5
{[%clk 00:11:00]} {[%emt 00:00:26]} 17. Qe2 {[%clk 00:07:41]} {[%emt 00:00:06]}
e5 {[%clk 00:10:02]} {[%emt 00:01:03]} 18. dxe5 {[%clk 00:06:55]} {[%emt
00:00:51]} Re8 {[%clk 00:09:00]} {[%emt 00:01:07]} 19. Bf4 {[%clk 00:02:35]}
{[%emt 00:04:24]} Ba6 {[%clk 00:08:33]} {[%emt 00:00:33]} 20. Be4 {[%clk
00:02:29]} {[%emt 00:00:11]} b4 {[%clk 00:07:11]} {[%emt 00:01:27]} 21. Qd2
{[%clk 00:01:49]} {[%emt 00:00:45]} Nxe5 {[%clk 00:06:52]} {[%emt 00:00:25]} 22.
Nxe5 {[%clk 00:00:27]} {[%emt 00:01:27]} Qxd2 23. Bxd2 {[%clk 00:00:30]} Rad8
{[%clk 00:06:20]} {[%emt 00:00:21]} 24. Nf3 {[%clk 00:00:10]} {[%emt 00:00:25]}
Bxb2 {[%clk 00:06:09]} {[%emt 00:00:16]} 25. Rab1 {[%clk 00:00:13]} {[%emt
00:00:03]} bxa3 {[%clk 00:06:08]} {[%emt 00:00:05]} 26. Bxa5 {[%clk 00:00:16]}
{[%emt 00:00:02]} Rc8 {[%clk 00:05:50]} {[%emt 00:00:22]} 27. Bd5 {[%clk
00:00:15]} {[%emt 00:00:07]} Rxe1+ {[%clk 00:05:39]} {[%emt 00:00:16]} 28. Bxe1
{[%clk 00:00:13]} {[%emt 00:00:07]} Bd3 {[%clk 00:05:27]} {[%emt 00:00:17]} 29.
Rd1 {[%clk 00:00:15]} {[%emt 00:00:02]} Bc2 {[%clk 00:05:18]} {[%emt 00:00:15]}
30. Rd2 {[%clk 00:00:15]} {[%emt 00:00:05]} Bc1 {[%clk 00:04:35]} {[%emt
00:00:48]} 31. Re2 {[%clk 00:00:15]} {[%emt 00:00:06]} Bd1 {[%clk 00:03:37]}
{[%emt 00:01:02]} 32. Re7 {[%clk 00:00:15]} {[%emt 00:00:05]} Bxf3 {[%clk
00:02:47]} {[%emt 00:00:55]} 33. gxf3 {[%clk 00:00:19]} {[%emt 00:00:02]} Bb2
{[%clk 00:02:42]} {[%emt 00:00:09]} 34. Rxf7 {[%clk 00:00:16]} {[%emt
00:00:07]} Kh8 {[%clk 00:02:38]} {[%emt 00:00:10]} 35. Ra7 {[%clk 00:00:12]}
{[%emt 00:00:08]} Rc1 {[%clk 00:02:35]} {[%emt 00:00:08]} 36. Kf1 {[%clk
00:00:10]} {[%emt 00:00:08]} Bc3 {[%clk 00:02:38]} {[%emt 00:00:02]} 37. Ra8+
{[%clk 00:00:14]} {[%emt 00:00:01]} Kg7 {[%clk 00:02:42]} {[%emt 00:00:02]} 38.
Re8 {[%clk 00:00:17]} Ra1 {[%clk 00:02:23]} {[%emt 00:00:23]} 39. f4 {[%clk
00:00:19]} {[%emt 00:00:03]} a2 {[%clk 00:02:22]} {[%emt 00:00:07]} 40. Bxa2
{[%clk 00:00:15]} {[%emt 00:00:10]} Bxe1 {[%clk 00:02:24]} {[%emt 00:00:03]} 41.
Rxe1 {[%clk 00:00:13]} {[%emt 00:00:06]} Rxa2 {[%clk 00:02:27]} {[%emt
00:00:02]} 42. Re7+ {[%clk 00:00:13]} {[%emt 00:00:04]} Kh6 {[%clk 00:02:31]}
{[%emt 00:00:02]} 43. Kg2 {[%clk 00:00:17]} Ra5 {[%clk 00:02:25]} {[%emt
00:00:11]} 44. Kg3 {[%clk 00:00:16]} {[%emt 00:00:06]} g5 {[%clk 00:02:17]}
{[%emt 00:00:12]} 45. Re6+ {[%clk 00:00:15]} {[%emt 00:00:07]} Kh5 {[%clk
00:02:17]} {[%emt 00:00:05]} 46. Re5 {[%clk 00:00:18]} {[%emt 00:00:02]} Ra3+
{[%clk 00:02:03]} {[%emt 00:00:20]} 47. f3 {[%clk 00:00:22]} h6 {[%clk
00:02:03]} {[%emt 00:00:05]} 48. fxg5 {[%clk 00:00:25]} {[%emt 00:00:01]} hxg5
{[%clk 00:02:05]} {[%emt 00:00:04]} 49. h4 {[%clk 00:00:29]} {[%emt 00:00:01]}
Ra1 {[%clk 00:01:47]} {[%emt 00:00:24]} 50. Rxg5+ {[%clk 00:00:29]} {[%emt
00:00:04]} Kh6 {[%clk 00:01:50]} {[%emt 00:00:02]} 51. Kg4 {[%clk 00:00:29]}
{[%emt 00:00:04]} Ra4+ {[%clk 00:01:45]} {[%emt 00:00:11]} 52. f4 {[%clk
00:00:33]} {[%emt 00:00:01]} Ra1 {[%clk 00:01:43]} {[%emt 00:00:07]} 53. h5
{[%clk 00:00:24]} {[%emt 00:00:14]} Rg1+ {[%clk 00:01:30]} {[%emt 00:00:18]} 54.
Kf5 {[%clk 00:00:28]} {[%emt 00:00:01]} Rf1 {[%clk 00:01:25]} {[%emt 00:00:11]}
55. Rg8 {[%clk 00:00:20]} {[%emt 00:00:13]} Re1 {[%clk 00:01:11]} {[%emt
00:00:19]} 56. Rh8+ {[%clk 00:00:14]} {[%emt 00:00:11]} Kg7 {[%clk 00:01:14]}
{[%emt 00:00:02]} 57. Rc8 {[%clk 00:00:16]} {[%emt 00:00:03]} Kh6 {[%clk
00:01:09]} {[%emt 00:00:10]} 58. Kf6 {[%clk 00:00:07]} {[%emt 00:00:13]} Kxh5
{[%clk 00:01:11]} {[%emt 00:00:03]} 59. Rh8+ {[%clk 00:00:10]} {[%emt
00:00:03]} Kg4 {[%clk 00:01:14]} {[%emt 00:00:01]} 60. f5 {[%clk 00:00:12]}
{[%emt 00:00:03]} Rf1 {[%clk 00:01:04]} {[%emt 00:00:14]} 61. Rg8+ {[%clk
00:00:16]} {[%emt 00:00:01]} Kf4 {[%clk 00:01:07]} {[%emt 00:00:02]} 62. Rc8
{[%clk 00:00:10]} {[%emt 00:00:11]} Re1 {[%clk 00:01:04]} {[%emt 00:00:09]} 63.
Rc4+ {[%clk 00:00:13]} {[%emt 00:00:02]} Kf3 {[%clk 00:01:03]} {[%emt
00:00:06]} 64. Kg7 {[%clk 00:00:16]} {[%emt 00:00:01]} Ra1 {[%clk 00:01:00]}
{[%emt 00:00:09]} 65. f6 {[%clk 00:00:20]} {[%emt 00:00:02]} Rg1+ {[%clk
00:00:46]} {[%emt 00:00:18]} 66. Kf8 {[%clk 00:00:23]} {[%emt 00:00:02]} Ke3
{[%clk 00:00:48]} {[%emt 00:00:03]} 67. f7 {[%clk 00:00:27]} {[%emt 00:00:01]}
Kd3 {[%clk 00:00:52]} {[%emt 00:00:02]} 68. Rc6 {[%clk 00:00:14]} {[%emt
00:00:17]} Kd4 {[%clk 00:00:47]} {[%emt 00:00:10]} 69. Ke7 {[%clk 00:00:17]}
{[%emt 00:00:01]} Rf1 {[%clk 00:00:42]} {[%emt 00:00:11]} 70. Rf6 {[%clk
00:00:19]} {[%emt 00:00:04]} Re1+ {[%clk 00:00:41]} {[%emt 00:00:06]} 71. Kd7
{[%clk 00:00:22]} {[%emt 00:00:02]} 1-0

[Event "Rapid Tournament (RAP)"]
[Site "Biel, Switzerland"]
[Date "2026.07.12"]
[Round "3.50"]
[White "Knuesel, Jolan"]
[Black "Varela Tavares, Goncalo"]
[Result "0-1"]
[TimeControl "15 + 5"]
[WhiteTitle "-"]
[BlackTitle "-"]
[WhiteFideId "1364529"]
[BlackFideId "1344773"]
[WhiteElo "1651"]
[BlackElo "1880"]

1. d4 {[%clk 00:15:06]} d5 {[%clk 00:15:08]} 2. Bf4 {[%clk 00:15:11]} {[%emt
01:08:59]} Nf6 {[%clk 00:15:01]} {[%emt 00:00:02]} 3. e3 {[%clk 00:15:14]}
{[%emt 00:00:03]} e6 {[%clk 00:15:04]} 4. Nf3 {[%clk 00:15:11]} {[%emt
00:00:08]} Bd6 {[%clk 00:15:03]} {[%emt 00:00:06]} 5. Bg3 {[%clk 00:15:14]}
{[%emt 00:00:03]} O-O {[%clk 00:15:04]} {[%emt 00:00:03]} 6. Bd3 {[%clk
00:15:17]} {[%emt 00:00:03]} Nbd7 {[%clk 00:15:00]} {[%emt 00:00:08]} 7. Nbd2
{[%clk 00:15:02]} {[%emt 00:00:20]} b6 {[%clk 00:14:15]} {[%emt 00:00:50]} 8.
Ne5 {[%clk 00:15:01]} {[%emt 00:00:06]} Bb7 {[%clk 00:14:10]} {[%emt 00:00:10]}
9. Ndf3 {[%clk 00:14:28]} {[%emt 00:00:38]} Qe7 {[%clk 00:13:54]} {[%emt
00:00:20]} 10. O-O {[%clk 00:13:31]} {[%emt 00:01:03]} c5 {[%clk 00:13:29]}
{[%emt 00:00:29]} 11. c3 {[%clk 00:13:18]} {[%emt 00:00:19]} Ne4 {[%clk
00:11:52]} {[%emt 00:01:40]} 12. Bh4 {[%clk 00:12:18]} {[%emt 00:01:07]} f6
{[%clk 00:10:51]} {[%emt 00:01:06]} 13. Qa4 {[%clk 00:10:56]} {[%emt 00:01:27]}
Bxe5 {[%clk 00:08:41]} {[%emt 00:02:14]} 14. Nxe5 {[%clk 00:10:26]} {[%emt
00:00:36]} Nxe5 {[%clk 00:08:02]} {[%emt 00:00:43]} 15. dxe5 {[%clk 00:10:27]}
{[%emt 00:00:05]} Qe8 {[%clk 00:07:29]} {[%emt 00:00:38]} 16. Qxe8 {[%clk
00:09:56]} {[%emt 00:00:35]} Raxe8 {[%clk 00:07:23]} {[%emt 00:00:12]} 17. exf6
{[%clk 00:08:34]} {[%emt 00:01:28]} Nxf6 {[%clk 00:06:52]} {[%emt 00:00:35]} 18.
Bb5 {[%clk 00:08:28]} {[%emt 00:00:11]} Rd8 {[%clk 00:05:55]} {[%emt 00:01:02]}
19. f3 {[%clk 00:07:22]} {[%emt 00:01:11]} d4 {[%clk 00:05:40]} {[%emt
00:00:20]} 20. e4 {[%clk 00:05:44]} {[%emt 00:01:43]} dxc3 {[%clk 00:03:58]}
{[%emt 00:01:47]} 21. e5 {[%clk 00:04:40]} {[%emt 00:01:09]} cxb2 {[%clk
00:03:57]} {[%emt 00:00:07]} 22. Rab1 {[%clk 00:04:43]} {[%emt 00:00:01]} Rd4
{[%clk 00:03:51]} {[%emt 00:00:10]} 23. Bf2 {[%clk 00:04:32]} {[%emt 00:00:17]}
Rb4 {[%clk 00:03:53]} {[%emt 00:00:03]} 24. exf6 {[%clk 00:04:23]} {[%emt
00:00:13]} Rxb5 {[%clk 00:03:49]} {[%emt 00:00:10]} 25. fxg7 {[%clk 00:04:11]}
{[%emt 00:00:17]} Rd8 {[%clk 00:03:42]} {[%emt 00:00:12]} 26. Bh4 {[%clk
00:03:44]} {[%emt 00:00:33]} Rd2 {[%clk 00:03:09]} {[%emt 00:00:36]} 27. Bf6
{[%clk 00:03:05]} {[%emt 00:00:40]} Bd5 {[%clk 00:02:49]} {[%emt 00:00:25]} 28.
a4 {[%clk 00:02:53]} {[%emt 00:00:22]} Rb3 {[%clk 00:02:18]} {[%emt 00:00:35]}
29. Rfe1 {[%clk 00:02:27]} {[%emt 00:00:32]} c4 {[%clk 00:02:05]} {[%emt
00:00:18]} 30. Bg5 {[%clk 00:02:01]} {[%emt 00:00:31]} Rc2 {[%clk 00:01:19]}
{[%emt 00:00:52]} 31. Kf1 {[%clk 00:01:38]} {[%emt 00:00:27]} c3 {[%clk
00:01:17]} {[%emt 00:00:07]} 32. Rbd1 {[%clk 00:00:51]} {[%emt 00:00:52]} Kxg7
{[%clk 00:00:57]} {[%emt 00:00:25]} 33. Bf4 {[%clk 00:00:07]} {[%emt 00:00:49]}
Bc4+ {[%clk 00:00:47]} {[%emt 00:00:15]} 34. Kg1 {[%clk 00:00:11]} {[%emt
00:00:01]} Re2 {[%clk 00:00:44]} {[%emt 00:00:08]} 35. Be5+ {[%clk 00:00:07]}
{[%emt 00:00:10]} Rxe5 {[%clk 00:00:35]} {[%emt 00:00:13]} 0-1